bitfinex/quotes_SOLUSD_20250728
["timestamp","ask_amount","ask_price","bid_price","bid_amount"]
[1753733777877,26.0,184.81,184.77,38.78]
[1753733778081,4.99966077,184.78,184.77,38.78]
[1753733778908,5.47966077,184.78,184.77,38.78]
[1753733780010,15.89116264,184.78,184.77,0.06]
[1753733780671,26.0,184.76,184.75,38.7]
[1753733780877,38.11936077,184.76,184.75,38.7]
[1753733781899,43.5317877,184.76,184.75,38.7]
[1753733782373,47.5146657,184.76,184.75,38.7]
[1753733782579,47.5146657,184.76,184.66,0.72]
[1753733782775,4.99966077,184.69,184.67,38.7]
[1753733783024,4.99966077,184.69,184.67,39.42]
[1753733785489,4.99966077,184.7,184.67,39.42]
[1753733785995,4.99966077,184.7,184.68,0.72]
[1753733786581,4.99966077,184.71,184.67,38.7]
[1753733786782,4.99966077,184.73,184.71,0.06]
[1753733787079,4.99966077,184.73,184.72,38.7]
[1753733787280,5.47966077,184.73,184.72,38.7]
[1753733787875,10.89296667,184.73,184.72,38.7]
[1753733789476,10.89296667,184.73,184.71,38.76]
[1753733789675,5.47966077,184.72,184.71,38.76]
[1753733791503,10.89325973,184.72,184.71,38.76]
[1753733791696,10.41325973,184.72,184.71,38.76]
[1753733792502,11.4344685,184.72,184.71,38.76]
[1753733793402,10.9544685,184.72,184.71,0.06]
[1753733793907,11.4344685,184.72,184.71,0.06]
[1753733795406,10.9544685,184.72,184.71,0.06]
[1753733796998,11.4344685,184.72,184.71,0.06]
[1753733797703,13.0441685,184.72,184.71,0.06]
[1753733799288,12.5641685,184.72,184.71,0.06]
[1753733800012,13.0441685,184.72,184.71,0.06]
[1753733802404,12.5641685,184.72,184.71,0.06]
[1753733806619,38.5641685,184.72,184.71,0.06]
[1753733807798,26.0,184.69,184.64,0.71]
[1753733807995,4.99966077,184.65,184.64,0.71]
[1753733808203,4.99966077,184.65,184.63,0.06]
[1753733808423,4.99966077,184.64,184.63,0.06]
[1753733808603,4.99966077,184.64,184.63,0.77]
[1753733809219,7.74480329,184.64,184.63,0.77]
[1753733809604,7.74480329,184.64,184.63,0.06]
[1753733809605,13.16074783,184.64,184.63,0.06]
[1753733809801,13.92507097,184.64,184.63,0.06]
[1753733810018,13.44507097,184.64,184.63,0.06]
[1753733812308,13.92507097,184.64,184.63,0.06]
[1753733813429,17.90298412,184.64,184.63,0.06]
[1753733815920,17.42298412,184.64,184.63,0.06]
[1753733816114,56.10298412,184.64,184.63,0.06]
[1753733816518,17.42298412,184.64,184.63,0.06]
[1753733816725,17.42198581,184.64,184.63,0.06]
[1753733817322,17.4232226,184.64,184.63,0.06]
[1753733817833,26.0,184.61,184.57,34.45]
[1753733818012,18.0832226,184.64,184.57,34.45]
[1753733818013,4.99966077,184.58,184.57,34.45]
[1753733819504,11.6185746,184.58,184.56,0.2]
[1753733819710,4.99966077,184.57,184.56,0.2]
[1753733820611,10.41765936,184.57,184.56,0.2]
[1753733822017,14.39434565,184.57,184.56,0.2]
[1753733822729,14.39380398,184.57,184.56,0.2]
[1753733822931,15.04380398,184.57,184.56,0.2]
[1753733823141,41.04380398,184.57,184.56,0.2]
[1753733823823,45.01986245,184.57,184.56,0.2]
[1753733824026,45.30418559,184.57,184.56,0.2]
[1753733826051,20.86518559,184.57,184.56,0.2]
[1753733826219,4.99966077,184.51,184.48,0.06]
[1753733826413,26.0,184.55,184.49,0.72]
[1753733826414,3.97043182,184.5,184.49,0.72]
[1753733826632,0.54120877,184.52,184.49,0.72]
[1753733826633,3.97043182,184.51,184.49,0.72]
[1753733826817,3.97043182,184.5,184.48,0.06]
[1753733827026,26.54120877,184.49,184.48,0.06]
[1753733827223,31.44596373,184.49,184.48,0.06]
[1753733827539,36.4456245,184.49,184.48,0.06]
[1753733828051,36.70491956,184.47,184.46,0.06]
[1753733828551,41.8612519,184.47,184.46,0.06]
[1753733828714,41.2112519,184.47,184.46,0.06]
[1753733829139,45.17266585,184.47,184.46,0.06]
[1753733831022,62.60734982,184.47,184.46,0.06]
[1753733831420,62.60734982,184.47,184.44,0.06]
[1753733831421,101.28734982,184.47,184.44,0.06]
[1753733831621,31.28398391,184.45,184.44,0.06]
[1753733831936,39.7517302,184.45,184.44,0.78]
[1753733832146,39.46740706,184.45,184.44,0.06]
[1753733832452,34.96478434,184.45,184.44,0.78]
[1753733832613,3.96512357,184.45,184.44,0.78]
[1753733833046,8.96478434,184.45,184.44,0.78]
[1753733833549,8.96478434,184.45,184.44,0.06]
[1753733833845,14.38630778,184.45,184.44,0.06]
[1753733834941,44.47931223,184.45,184.44,0.06]
[1753733835121,45.2714738,184.45,184.44,0.06]
[1753733836626,45.25100527,184.45,184.44,0.06]
[1753733836942,74.71568924,184.45,184.44,0.06]
[1753733838513,26.0,184.42,184.4,0.06]
[1753733838840,18.43238312,184.41,184.4,0.06]
[1753733839042,13.43272235,184.41,184.4,0.06]
[1753733839237,13.43272235,184.41,184.4,0.78]
[1753733839415,13.43272235,184.41,184.4,0.06]
[1753733840637,18.85542176,184.41,184.4,0.06]
[1753733840823,24.78940567,184.41,184.4,0.06]
[1753733842114,63.46940567,184.41,184.4,0.06]
[1753733843246,79.60408964,184.41,184.4,0.06]
[1753733843421,41.57408964,184.41,184.4,0.06]
[1753733844038,41.57408964,184.41,184.37,0.1]
[1753733844039,26.0,184.38,184.37,0.1]
[1753733844218,39.71704549,184.38,184.37,0.1]
[1753733844416,40.35704549,184.38,184.37,0.1]
[1753733844612,45.14062722,184.38,184.37,0.1]
[1753733844851,45.78062722,184.38,184.37,0.1]
[1753733845148,45.1304398,184.38,184.37,0.1]
[1753733845354,47.79588508,184.38,184.37,0.1]
[1753733845530,11.08831944,184.38,184.37,0.82]
[1753733845851,2.23774896,184.38,184.37,7.47976077]
[1753733846019,0.54120877,184.43,184.37,7.47976077]
[1753733846020,5.54086954,184.43,184.37,12.90363667]
[1753733846217,3.93434278,184.42,184.38,4.99966077]
[1753733846424,4.99966077,184.41,184.37,1.7601]
[1753733846623,4.99966077,184.39,184.37,0.1]
[1753733846834,4.99966077,184.38,184.37,0.1]
[1753733847022,30.99966077,184.38,184.37,0.1]
[1753733847236,35.5839042,184.38,184.37,0.1]
[1753733847455,34.93482065,184.38,184.37,0.1]
[1753733847739,0.54120877,184.4,184.37,0.1]
[1753733847740,30.99966077,184.39,184.37,0.1]
[1753733847917,8.93427348,184.38,184.37,0.1]
[1753733848123,4.99966077,184.38,184.37,0.1]
[1753733848724,30.99966077,184.39,184.37,0.1]
[1753733849335,4.99966077,184.38,184.37,0.1]
[1753733849538,26.0,184.39,184.37,0.1]
[1753733849743,4.99966077,184.38,184.37,0.1]
[1753733850068,3.93726139,184.38,184.37,0.1]
[1753733850233,4.99966077,184.4,184.37,0.1]
[1753733850431,3.9393944,184.39,184.37,0.1]
[1753733850629,4.99966077,184.39,184.37,0.1]
[1753733851957,8.94105677,184.38,184.37,0.1]
[1753733852156,8.94131603,184.38,184.37,0.1]
[1753733852454,4.99966077,184.39,184.37,0.1]
[1753733853046,6.63394821,184.41,184.37,0.1]
[1753733853236,4.99966077,184.39,184.37,0.1]
[1753733853948,5.54086954,184.41,184.37,5.52373602]
[1753733854146,151.64966007,184.43,184.39,4.99966077]
[1753733854333,2.64966007,184.43,184.4,4.99966077]
[1753733854547,5.54086954,184.45,184.4,4.99966077]
[1753733854856,4.99966077,184.41,184.37,0.1]
[1753733855031,4.99966077,184.38,184.37,0.1]
[1753733855440,4.99966077,184.39,184.37,0.1]
[1753733855639,26.0,184.41,184.37,0.1]
[1753733856053,4.99966077,184.42,184.37,0.1]
[1753733856054,4.99966077,184.42,184.37,5.09966077]
[1753733857157,4.99966077,184.42,184.37,0.1]
[1753733857339,4.99966077,184.42,184.37,5.09966077]
[1753733857929,3.95704884,184.41,184.37,5.09966077]
[1753733858147,3.95704884,184.4,184.37,5.09966077]
[1753733858345,3.95704884,184.39,184.37,0.1]
[1753733858540,4.99966077,184.42,184.37,5.09966077]
[1753733858725,3.9593127,184.41,184.37,10.52353306]
[1753733858927,3.95921292,184.4,184.37,10.52353306]
[1753733859167,3.95921292,184.39,184.38,0.54235817]
[1753733859471,3.96174941,184.39,184.38,0.54235817]
[1753733859770,151.68077714,184.45,184.38,17.32704214]
[1753733860066,3.96183333,184.44,184.38,17.32704214]
[1753733860242,3.96183333,184.43,184.41,4.99966077]
[1753733860567,3.96183333,184.42,184.41,4.99966077]
[1753733861758,3.96183333,184.42,184.4,49.08243652]
[1753733861933,3.96183333,184.41,184.4,38.66]
[1753733862138,4.63183333,184.41,184.4,38.66]
[1753733862348,3.96183333,184.41,184.4,38.66]
[1753733862977,3.96183333,184.41,184.4,49.08265426]
[1753733863454,151.68077714,184.45,184.4,49.08265426]
[1753733863455,0.03,184.46,184.4,65.86733823]
[1753733863761,3.97160951,184.45,184.42,4.99966077]
[1753733863934,4.00160951,184.46,184.42,4.99966077]
[1753733863935,3.97160951,184.44,184.42,4.99966077]
[1753733864134,3.97160951,184.43,184.42,4.99966077]
[1753733865542,3.97160951,184.43,184.41,4.99966077]
[1753733865739,3.97160951,184.42,184.41,10.42224654]
[1753733866358,3.97160951,184.42,184.4,38.66]
[1753733866551,4.64725221,184.41,184.4,38.66]
[1753733867243,4.64725221,184.41,184.4,49.08265426]
[1753733867244,3.97725221,184.41,184.4,49.08265426]
[1753733867558,31.69966077,184.46,184.4,49.08265426]
[1753733867876,3.97991827,184.45,184.41,4.99966077]
[1753733868055,3.97991827,184.44,184.41,4.99966077]
[1753733868252,3.97991827,184.43,184.41,4.99966077]
[1753733868478,31.02966077,184.46,184.41,4.99966077]
[1753733868676,3.98217838,184.45,184.41,4.99966077]
[1753733868888,4.65217838,184.44,184.4,44.08297582]
[1753733869181,3.98217838,184.43,184.4,49.08263659]
[1753733869350,0.67,184.44,184.4,49.08263659]
[1753733869542,4.65428323,184.43,184.4,38.66]
[1753733869745,3.98428323,184.42,184.4,38.66]
[1753733870162,4.65668278,184.41,184.4,38.66]
[1753733870780,3.98668278,184.41,184.4,38.66]
[1753733870952,4.65668278,184.43,184.4,38.66]
[1753733871151,3.98668278,184.42,184.4,38.66]
[1753733871347,4.99966077,184.43,184.4,38.66]
[1753733871571,4.65961615,184.42,184.4,38.66]
[1753733871774,4.65961615,184.41,184.4,38.66]
[1753733872153,3.98961615,184.41,184.4,38.66]
[1753733872375,0.67,184.43,184.4,38.66]
[1753733872585,3.99238287,184.42,184.4,38.66]
[1753733872763,4.66238287,184.42,184.4,38.66]
[1753733872968,34.44634625,184.45,184.4,43.65966077]
[1753733873284,4.66239309,184.44,184.4,38.66]
[1753733873488,4.66239309,184.43,184.4,38.66]
[1753733873667,3.99239309,184.42,184.4,38.66]
[1753733874070,0.67,184.42,184.4,38.66]
[1753733874988,0.67,184.44,184.4,38.66]
[1753733875291,0.67,184.42,184.4,38.66]
[1753733875651,0.67,184.44,184.4,38.66]
[1753733875975,3.99298878,184.43,184.4,38.66]
[1753733876279,4.66298878,184.43,184.4,38.66]
[1753733876482,0.67,184.43,184.4,38.66]
[1753733877572,0.67,184.42,184.4,38.66]
[1753733878777,4.99966077,184.43,184.38,0.06]
[1753733878978,5.66966077,184.41,184.39,38.62]
[1753733879187,0.67,184.4,184.39,38.62]
[1753733879390,5.66966077,184.4,184.39,38.62]
[1753733880589,26.67,184.42,184.39,38.62]
[1753733880776,26.0,184.42,184.39,38.62]
[1753733881282,4.39998548,184.45,184.41,4.99966077]
[1753733881283,3.43668548,184.45,184.41,4.99966077]
[1753733881495,3.99310211,184.44,184.42,38.62]
[1753733882566,2.77668548,184.45,184.43,4.99966077]
[1753733882759,0.03,184.46,184.42,39.16224053]
[1753733882981,0.03,184.46,184.42,43.61966077]
[1753733883165,4.68487358,184.46,184.42,43.61966077]
[1753733883365,0.69,184.46,184.42,43.61966077]
[1753733883572,0.69,184.46,184.42,49.04204609]
[1753733883786,0.69,184.46,184.42,43.61966077]
[1753733884085,0.66,184.45,184.42,38.62]
[1753733884788,0.66,184.44,184.42,38.62]
[1753733885176,0.66,184.43,184.42,38.62]
[1753733885490,0.66,184.43,184.4,4.99966077]
[1753733885700,4.99966077,184.42,184.38,0.06]
[1753733885862,4.99966077,184.43,184.39,38.62]
[1753733886063,2.65383766,184.45,184.42,4.99966077]
[1753733886365,0.03,184.46,184.43,38.62]
[1753733887592,5.68966077,184.46,184.43,38.62]
[1753733888089,5.65966077,184.45,184.38,16.84468397]
[1753733888292,5.65966077,184.45,184.4,4.99966077]
[1753733888593,0.66,184.44,184.4,4.99966077]
[1753733888891,0.66,184.43,184.39,43.61966077]
[1753733889675,7.69896874,184.45,184.4,4.99966077]
[1753733889880,0.66,184.44,184.4,4.99966077]
[1753733890281,2.69930797,184.45,184.4,4.99966077]
[1753733890482,4.99966077,184.45,184.4,4.99966077]
[1753733890702,0.66,184.44,184.39,43.61966077]
[1753733890878,4.99966077,184.43,184.39,38.62]
[1753733891192,0.66,184.42,184.39,38.62]
[1753733891394,0.66,184.42,184.4,38.6]
[1753733891813,4.99966077,184.44,184.4,38.6]
[1753733891814,10.42181592,184.43,184.4,38.6]
[1753733892105,0.66,184.41,184.4,38.6]
[1753733893183,1.20120877,184.44,184.4,38.6]
[1753733893378,0.66,184.43,184.4,38.6]
[1753733893605,0.66,184.42,184.4,38.6]
[1753733894100,0.66,184.41,184.4,38.6]
[1753733894290,6.20086954,184.41,184.38,38.66]
[1753733894488,4.99966077,184.4,184.38,38.66]
[1753733894690,5.65966077,184.39,184.38,38.66]
[1753733896080,41.63035183,184.39,184.38,0.06]
[1753733897387,41.91467497,184.39,184.38,0.06]
[1753733897786,190.91467497,184.39,184.38,0.06]
[1753733898078,190.3734662,184.39,184.38,0.06]
[1753733899011,193.97707422,184.39,184.38,0.06]
[1753733899211,193.69275108,184.39,184.38,0.06]
[1753733900311,193.69275108,184.39,184.37,0.1]
[1753733900312,0.28432314,184.38,184.37,0.1]
[1753733900480,26.0,184.36,184.35,0.1]
[1753733900803,13.80049365,184.36,184.35,0.1]
[1753733901188,10.20013577,184.36,184.35,0.1]
[1753733902177,15.62430587,184.36,184.35,0.1]
[1753733902375,10.20013577,184.36,184.35,0.1]
[1753733902575,36.96503964,184.36,184.35,0.1]
[1753733902777,31.54086954,184.36,184.35,0.1]
[1753733902989,153.99966077,184.37,184.35,0.1]
[1753733903202,4.99966077,184.36,184.35,0.1]
[1753733903422,0.66,184.4,184.35,0.1]
[1753733903597,4.99966077,184.39,184.35,0.1]
[1753733903800,30.99966077,184.39,184.35,0.26]
[1753733904102,30.99966077,184.39,184.35,0.1]
[1753733904300,4.99966077,184.38,184.35,0.1]
[1753733904487,4.99966077,184.36,184.35,0.1]
[1753733905108,5.65966077,184.36,184.35,0.1]
[1753733906099,10.06485582,184.36,184.35,0.1]
[1753733906308,11.08383087,184.36,184.35,0.1]
[1753733907401,37.08383087,184.36,184.35,0.1]
[1753733907712,31.65966077,184.36,184.35,0.1]
[1753733907899,32.20086954,184.36,184.35,0.1]
[1753733908095,26.0,184.36,184.35,0.1]
[1753733908301,4.99966077,184.38,184.35,0.1]
[1753733908505,31.54086954,184.39,184.35,0.1]
[1753733909203,4.99966077,184.38,184.35,0.1]
[1753733911220,0.66,184.38,184.35,0.1]
[1753733912212,154.42306218,184.4,184.35,5.25966077]
[1753733912213,154.65966077,184.4,184.35,5.25966077]
[1753733912416,26.0,184.41,184.37,4.99966077]
[1753733912604,0.66,184.43,184.38,4.99966077]
[1753733912803,26.66,184.43,184.38,4.99966077]
[1753733912992,26.66,184.43,184.37,38.6]
[1753733913192,0.03,184.44,184.4,4.99966077]
[1753733913399,0.03,184.44,184.42,4.99966077]
[1753733913631,0.03,184.46,184.43,44.3018719]
[1753733913832,0.03,184.46,184.45,21.78434474]
[1753733914118,0.03,184.47,184.46,16.78468397]
[1753733914328,0.03,184.5,184.46,22.61079083]
[1753733914623,0.03,184.5,184.49,21.78434474]
[1753733914806,0.03,184.5,184.49,60.92637953]
[1753733914989,0.03,184.5,184.49,60.99637953]
[1753733915618,0.03,184.5,184.49,55.99671876]
[1753733915801,0.03,184.5,184.49,44.21169556]
[1753733916006,0.03,184.5,184.49,49.63204354]
[1753733916203,0.03,184.5,184.49,66.41672751]
[1753733917810,0.03,184.5,184.49,49.56204354]
[1753733918326,0.03,184.5,184.49,44.14169556]
[1753733919023,0.03,184.5,184.49,4.99966077]
[1753733919199,0.03,184.5,184.49,43.57966077]
[1753733919399,0.03,184.5,184.49,4.99966077]
[1753733919615,0.03,184.5,184.49,43.57966077]
[1753733920216,0.03,184.5,184.49,38.58]
[1753733920525,0.69,184.5,184.49,38.58]
[1753733921232,0.03,184.5,184.49,38.58]
[1753733921903,0.69,184.5,184.49,38.58]
[1753733923818,0.03,184.5,184.49,38.58]
[1753733924739,0.69,184.5,184.49,38.58]
[1753733928145,0.03,184.5,184.49,43.57966077]
[1753733930139,0.03,184.5,184.49,38.58]
[1753733930339,0.69,184.5,184.49,38.56]
[1753733930923,0.03,184.5,184.49,43.55966077]
[1753733931330,0.03,184.5,184.49,44.10169556]
[1753733932348,0.03,184.5,184.49,43.55966077]
[1753733932536,0.03,184.5,184.49,48.98000875]
[1753733933431,0.03,184.5,184.49,49.05000875]
[1753733935745,0.03,184.5,184.49,48.98000875]
[1753733936724,0.03,184.5,184.49,72.68377663]
[1753733936924,0.03,184.5,184.49,73.22581142]
[1753733939767,0.03,184.54,184.5,17.06900711]
[1753733939948,0.03,184.54,184.53,21.78434474]
[1753733940141,0.03,184.54,184.53,60.32434474]
[1753733940340,0.03,184.54,184.53,60.67866788]
[1753733941162,0.03,184.54,184.53,66.09784091]
[1753733941467,0.03,184.57,184.56,42.78468397]
[1753733941650,0.03,184.61,184.6,42.78468397]
[1753733941853,0.03,184.61,184.6,86.60866788]
[1753733942146,0.03,184.61,184.6,87.22037968]
[1753733943048,0.03,184.61,184.6,92.63749777]
[1753733943744,0.68,184.68,184.61,17.06900711]
[1753733943942,0.68,184.68,184.64,21.78434474]
[1753733944173,0.68,184.68,184.64,60.32434474]
[1753733944955,0.68,184.68,184.64,60.86593919]
[1753733945259,0.68,184.68,184.64,66.28188373]
[1753733945967,0.68,184.67,184.64,66.28188373]
[1753733946749,0.71,184.65,184.64,43.53966077]
[1753733947775,0.03,184.65,184.64,43.53966077]
[1753733948357,0.71,184.65,184.64,43.53966077]
[1753733949672,4.66675576,184.65,184.64,43.53966077]
[1753733950491,4.66675576,184.65,184.64,38.54]
[1753733950653,0.71,184.65,184.64,38.52]
[1753733950858,4.66803389,184.65,184.64,38.52]
[1753733951071,4.66803389,184.65,184.64,43.51966077]
[1753733951666,4.66803389,184.65,184.64,38.52]
[1753733952068,8.62749768,184.65,184.64,38.52]
[1753733952266,8.62948586,184.65,184.64,38.52]
[1753733953451,8.62948586,184.65,184.64,35.80785231]
[1753733956292,7.94948586,184.65,184.64,35.80785231]
[1753733956781,7.94948586,184.65,184.64,40.80751308]
[1753733957083,3.99145197,184.65,184.64,46.22345762]
[1753733958288,0.03,184.65,184.64,46.22345762]
[1753733959761,0.03,184.65,184.64,40.80751308]
[1753733959960,4.00661278,184.65,184.64,40.80751308]
[1753733960161,0.03,184.65,184.64,40.80751308]
[1753733961365,0.03,184.65,184.64,40.86751308]
[1753733961968,0.71,184.65,184.64,38.56]
[1753733962267,4.6866774,184.65,184.64,38.56]
[1753733963874,9.68633817,184.65,184.64,38.56]
[1753733964287,42.6392894,184.65,184.6,0.06]
[1753733964595,4.99966077,184.61,184.6,0.06]
[1753733964764,8.97633817,184.61,184.6,0.06]
[1753733964964,9.51754694,184.61,184.6,0.06]
[1753733965205,10.19754694,184.61,184.6,0.06]
[1753733965798,15.61437159,184.61,184.6,0.06]
[1753733965996,173.87754163,184.61,184.6,1e-08]
[1753733966175,47.53731683,184.61,184.6,1e-08]
[1753733966382,48.0785256,184.61,184.6,1e-08]
[1753733966883,31.29384163,184.61,184.6,1e-08]
[1753733967198,26.29418086,184.61,184.6,1e-08]
[1753733967410,26.29779761,184.61,184.6,1e-08]
[1753733969195,22.31805747,184.61,184.6,1e-08]
[1753733969966,18.33831733,184.61,184.6,1e-08]
[1753733970171,27.31971917,184.61,184.6,1e-08]
[1753733970372,22.3200584,184.61,184.6,1e-08]
[1753733972789,22.32353001,184.61,184.6,1e-08]
[1753733976772,17.0395461,184.61,184.6,1e-08]
[1753733977086,4.99966077,184.61,184.6,1e-08]
[1753733977287,30.99966077,184.61,184.6,1e-08]
[1753733977486,31.71966077,184.61,184.6,1e-08]
[1753733977977,37.13648542,184.61,184.6,1e-08]
[1753733978301,37.67769419,184.61,184.6,1e-08]
[1753733978475,30.99966077,184.61,184.6,1e-08]
[1753733978678,31.54086954,184.61,184.6,1e-08]
[1753733978892,30.99966077,184.61,184.6,1e-08]
[1753733980406,1.26120877,184.64,184.6,1e-08]
[1753733980581,4.99966077,184.63,184.6,0.69000001]
[1753733980971,4.99966077,184.63,184.6,1e-08]
[1753733981190,4.99966077,184.63,184.61,0.69]
[1753733981976,4.99966077,184.64,184.61,0.69]
[1753733982381,4.99966077,184.64,184.6,1e-08]
[1753733982586,4.99966077,184.64,184.6,0.69000001]
[1753733982879,5.02966077,184.63,184.6,0.69000001]
[1753733983085,0.03,184.63,184.61,0.69]
[1753733983284,0.03,184.63,184.62,0.69]
[1753733983890,0.03,184.63,184.6,0.69000001]
[1753733984320,0.03,184.63,184.61,5.68966077]
[1753733984481,0.03,184.63,184.62,21.78434474]
[1753733984679,0.03,184.63,184.62,22.47434474]
[1753733986300,0.03,184.63,184.62,27.89087599]
[1753733986495,0.03,184.63,184.62,28.17519913]
[1753733986696,0.03,184.63,184.62,54.17519913]
[1753733987392,0.03,184.65,184.62,54.17519913]
[1753733987393,0.03,184.65,184.64,0.28432314]
[1753733987605,0.03,184.69,184.64,50.23076233]
[1753733987823,0.03,184.69,184.68,21.78434474]
[1753733988296,0.03,184.69,184.68,27.88911623]
[1753733990813,0.03,184.69,184.68,33.17310014]
[1753733991013,0.03,184.69,184.68,33.71457728]
[1753733991615,0.03,184.69,184.68,28.71491651]
[1753733993115,0.03,184.69,184.68,28.43059337]
[1753733993321,0.03,184.69,184.68,66.89059337]
[1753733993898,0.03,184.69,184.68,21.78434474]
[1753733994099,0.03,184.69,184.68,60.24434474]
[1753733994418,0.03,184.69,184.68,43.45966077]
[1753733994599,0.03,184.69,184.67,4.99966077]
[1753733994914,0.03,184.69,184.68,38.46]
[1753733995296,0.03,184.69,184.68,43.45966077]
[1753733997391,0.03,184.69,184.68,38.46]
[1753733997628,0.03,184.69,184.68,48.87443226]
[1753733997920,0.03,184.69,184.68,49.56443226]
[1753733998125,0.03,184.69,184.68,66.89059337]
[1753734000626,0.57120877,184.77,184.7,0.28432314]
[1753734000627,0.75,184.77,184.7,0.28432314]
[1753734000937,0.03,184.77,184.76,4.99966077]
[1753734001231,0.03,184.77,184.76,43.43966077]
[1753734001622,0.03,184.77,184.74,0.54130128]
[1753734001623,0.69,184.77,184.74,0.54130128]
[1753734001820,4.99966077,184.75,184.74,38.44]
[1753734002027,5.65966077,184.75,184.74,38.44]
[1753734002208,11.07238066,184.75,184.67,26.0]
[1753734002408,4.99966077,184.7,184.68,38.44]
[1753734002708,5.65966077,184.69,184.62,39.02]
[1753734002913,4.99966077,184.65,184.62,39.02]
[1753734003136,0.66,184.64,184.63,38.44]
[1753734003633,4.99966077,184.66,184.63,38.44]
[1753734004008,0.66,184.65,184.63,38.44]
[1753734004231,4.99966077,184.67,184.63,38.44]
[1753734004440,5.65966077,184.67,184.63,38.44]
[1753734004807,8.80253201,184.67,184.63,38.44]
[1753734005023,0.66,184.66,184.63,38.44]
[1753734005706,8.14253201,184.67,184.63,43.85622362]
[1753734006429,0.66,184.66,184.63,43.85622362]
[1753734006613,8.80253201,184.66,184.63,43.85622362]
[1753734009340,0.66,184.7,184.64,25.59721598]
[1753734009530,0.66,184.7,184.65,8.14253201]
[1753734009735,8.14253201,184.72,184.67,8.14253201]
[1753734010040,8.83253201,184.73,184.68,8.14253201]
[1753734010342,8.17253201,184.73,184.69,38.44]
[1753734010644,0.66,184.72,184.69,38.44]
[1753734010823,8.80253201,184.72,184.69,38.44]
[1753734011208,0.66,184.71,184.69,38.44]
[1753734012237,8.80253201,184.7,184.64,0.54159445]
[1753734012417,8.14253201,184.69,184.65,38.44]
[1753734012822,0.03,184.73,184.67,8.14253201]
[1753734012823,0.66,184.71,184.67,8.14253201]
[1753734013040,8.14253201,184.72,184.68,38.44]
[1753734013341,8.14253201,184.72,184.68,43.85470285]
[1753734013631,8.80253201,184.72,184.68,43.85470285]
[1753734015418,8.80253201,184.71,184.68,43.85470285]
[1753734015618,8.14253201,184.69,184.68,38.44]
[1753734015817,8.80253201,184.69,184.68,38.44]
[1753734018942,8.80253201,184.69,184.62,42.78468397]
[1753734019115,0.66,184.69,184.64,8.14253201]
[1753734019313,8.80253201,184.69,184.64,14.22829555]
[1753734019735,8.80253201,184.71,184.66,8.14253201]
[1753734019944,8.80253201,184.71,184.67,38.44]
[1753734020323,149.0,184.72,184.67,47.25253201]
[1753734020528,149.0,184.72,184.68,8.81253201]
[1753734020725,0.03,184.73,184.69,8.14253201]
[1753734020948,0.03,184.73,184.7,47.25253201]
[1753734021726,0.03,184.73,184.7,38.44]
[1753734022126,0.66,184.72,184.7,38.44]
[1753734022423,8.17253201,184.73,184.71,38.44]
[1753734022746,8.68374078,184.72,184.71,38.44]
[1753734023045,9.34374078,184.72,184.71,38.44]
[1753734023521,5.41389204,184.71,184.69,38.44]
[1753734023720,12.80623669,184.7,184.69,38.44]
[1753734023944,12.14623669,184.7,184.69,38.44]
[1753734024127,12.80623669,184.7,184.69,38.44]
[1753734024526,40.43913669,184.7,184.61,16.78468397]
[1753734024738,8.14253201,184.65,184.62,38.44]
[1753734025044,8.14253201,184.66,184.63,38.44]
[1753734025629,8.14253201,184.66,184.63,43.85621192]
[1753734026946,4.99669486,184.66,184.63,43.85621192]
[1753734027349,4.99669486,184.66,184.63,38.44]